[Event "XXVII RUS-chT Premier 2020"]
[Site "Sochi"]
[Date "2020.11.20"]
[Round "2.21"]
[White "Kokarev, Dmitry"]
[Black "Demidov, Mikhail"]
[Result "1-0"]
[ECO "B08"]
[WhiteElo "2621"]
[BlackElo "2526"]
[Annotator "ChessBase"]
[PlyCount "103"]
[EventDate "2020.11.19"]
[EventType "team-tourn"]
[EventCountry "RUS"]
[SourceTitle "playchess.com"]
[Source "ChessBase"]
[SourceQuality "1"]
[TimeControl "40/5400+30:1800+30"]

1. e4 {[%emt 0:00:00]} g6 {[%emt 0:00:00]} 2. d4 {[%emt 0:00:00]} Bg7 {[%emt 0:00:00]} 3. Nf3 {[%emt 0:00:00]} d6 {[%emt 0:00:08]} 4. Be2 {[%emt 0:00:06]} Nf6 {[%emt 0:00:24]} 5. Nc3 {[%emt 0:00:10]} c5 {[%emt 0:00:21]} 6. d5 {[%emt 0:00:24]} O-O {[%emt 0:01:47]} 7. O-O {[%emt 0:00:22]} Na6 {[%emt 0:04:11]} 8. h3 {[%emt 0:06:56]} Nc7 {[%emt 0:00:52]} 9. a4 {[%emt 0:00:18]} e6 {[%emt 0:04:33]} 10. dxe6 {[%emt 0:02:01]} Nxe6 {[%emt 0:02:17]} 11. Bc4 {[%emt 0:00:52]} b6 {[%emt 0:06:31]} 12. Nb5 {[%emt 0:14:10]} Ba6 {[%emt 0:06:20]} 13. Re1 {[%emt 0:00:21]} Bxb5 {[%emt 0:06:10]} 14. axb5 {[%emt 0:00:41]} Re8 {[%emt 0:02:16]} 15. Ra3 {[%emt 0:07:16]} Qc7 {[%emt 0:04:46]} 16. Rd3 {[%emt 0:00:57]} Rad8 {[%emt 0:01:40]} 17. Bxe6 {[%emt 0:13:30]} fxe6 {[%emt 0:07:55]} 18. Bf4 {[%emt 0:00:12]} e5 {[%emt 0:01:29]} 19. Bg5 {[%emt 0:00:09]} Qd7 {[%emt 0:01:41]} 20. c4 {[%emt 0:01:11]} Qe6 {[%emt 0:01:05]} 21. Rc3 {[%emt 0:08:26]} Rd7 {[%emt 0:02:29]} 22. Bxf6 {[%emt 0:00:09]} Bxf6 {[%emt 0:02:26]} 23. Qd5 {[%emt 0:00:46]} Qxd5 {[%emt 0:05:31]} 24. cxd5 {[%emt 0:00:55]} Rf8 {[%emt 0:01:02]} 25. Ra1 {[%emt 0:02:50]} Rff7 {[%emt 0:02:04]} 26. g3 {[%emt 0:02:30]} Kg7 {[%emt 0:01:18]} 27. Kg2 {[%emt 0:03:24]} Kg8 {[%emt 0:02:52]} 28. Nd2 {[%emt 0:00:17]} Bg5 29. Nc4 Rfe7 {[%emt 0:03:06]} 30. Rf3 {[%emt 0:01:02]} Kg7 {[%emt 0:01:16]} 31. Kf1 {[%emt 0:00:42]} h5 {[%emt 0:00:42]} 32. Ke2 {[%emt 0:00:25]} Re8 {[%emt 0:06:13]} 33. Rg1 {[%emt 0:04:34]} Rh8 {[%emt 0:02:59]} 34. Ra3 Rf8 35. h4 {[%emt 0:09:19]} Bh6 {[%emt 0:01:46]} 36. Rf3 {[%emt 0:00:33]} Rh8 {[%emt 0:01:33]} 37. g4 {[%emt 0:08:02]} hxg4 {[%emt 0:08:04]} 38. Rfg3 {[%emt 0:00:12]} Bf4 {[%emt 0:00:35]} 39. Rxg4 {[%emt 0:00:07]} Rh6 {[%emt 0:00:25]} 40. h5 {[%emt 0:00:00]} g5 {[%emt 0:00:00]} 41. Rxf4 {[%emt 0:08:29]} exf4 {[%emt 0:00:56]} 42. Rxg5+ {[%emt 0:00:05]} Kf8 {[%emt 0:11:01]} 43. Kf3 {[%emt 0:00:19]} Rf6 {[%emt 0:04:34]} 44. e5 {[%emt 0:06:49]} dxe5 {[%emt 0:01:19]} 45. Ke4 {[%emt 0:03:29]} Rg7 {[%emt 0:04:42]} 46. Rxg7 {[%emt 0:00:19]} Kxg7 {[%emt 0:00:04]} 47. d6 {[%emt 0:00:59]} Rf8 {[%emt 0:06:22]} 48. Nxe5 {[%emt 0:00:37]} Rd8 {[%emt 0:01:09]} 49. d7 {[%emt 0:00:37]} Kf6 {[%emt 0:00:12]} 50. h6 {[%emt 0:00:27]} f3 {[%emt 0:05:01]} 51. b3 {[%emt 0:02:09]} Ke6 {[%emt 0:02:14]} 52. h7 {[%emt 0:00:22]} 1-0

[Event "XXVII RUS-chT Premier 2020"]
[Site "Sochi"]
[Date "2020.11.20"]
[Round "2.22"]
[White "Murzin, Volodar"]
[Black "Makarian, Rudik"]
[Result "1/2-1/2"]
[ECO "C44"]
[WhiteElo "2470"]
[BlackElo "2441"]
[Annotator "ChessBase"]
[PlyCount "46"]
[EventDate "2020.11.19"]
[EventType "team-tourn"]
[EventCountry "RUS"]
[SourceTitle "playchess.com"]
[Source "ChessBase"]
[SourceQuality "1"]
[TimeControl "40/5400+30:1800+30"]

1. e4 {[%emt 0:00:00]} e5 {[%emt 0:00:00]} 2. Nf3 {[%emt 0:00:00]} Nc6 {[%emt 0:00:00]} 3. d4 {[%emt 0:00:06]} exd4 {[%emt 0:01:04]} 4. Nxd4 {[%emt 0:00:06]} Nf6 {[%emt 0:01:53]} 5. Nxc6 {[%emt 0:00:16]} bxc6 {[%emt 0:00:04]} 6. Bd3 {[%emt 0:01:14]} d5 {[%emt 0:00:58]} 7. Qe2 {[%emt 0:01:20]} dxe4 {[%emt 0:16:33]} 8. Bxe4 {[%emt 0:02:03]} Nxe4 {[%emt 0:00:09]} 9. Qxe4+ {[%emt 0:00:00]} Qe7 {[%emt 0:00:09]} 10. Qxe7+ {[%emt 0:01:45]} Bxe7 {[%emt 0:00:32]} 11. O-O O-O {[%emt 0:02:39]} 12. Re1 {[%emt 0:05:23]} Bf6 {[%emt 0:02:45]} 13. Nd2 {[%emt 0:01:05]} Bf5 {[%emt 0:06:04]} 14. Ne4 {[%emt 0:01:00]} Bxe4 {[%emt 0:01:37]} 15. Rxe4 {[%emt 0:00:06]} Rfd8 {[%emt 0:00:34]} 16. Kf1 {[%emt 0:00:58]} Rab8 {[%emt 0:08:23]} 17. c3 {[%emt 0:03:46]} Rd1+ {[%emt 0:00:34]} 18. Re1 {[%emt 0:00:14]} Rd5 {[%emt 0:00:50]} 19. Re2 {[%emt 0:01:23]} Rd1+ {[%emt 0:00:15]} 20. Re1 {[%emt 0:00:56]} Rd5 {[%emt 0:00:12]} 21. Re2 {[%emt 0:04:41]} Rd1+ {[%emt 0:00:09]} 22. Re1 {[%emt 0:00:06]} Rd5 {[%emt 0:00:12]} 23. Re2 {[%emt 0:00:27]} Rd1+ 1/2-1/2

[Event "XXVII RUS-chT Premier 2020"]
[Site "Sochi"]
[Date "2020.11.20"]
[Round "2.23"]
[White "Petrov, Nikita"]
[Black "Belyakov, Bogdan"]
[Result "1/2-1/2"]
[ECO "D80"]
[WhiteElo "2577"]
[BlackElo "2450"]
[Annotator "ChessBase"]
[PlyCount "139"]
[EventDate "2020.11.19"]
[EventType "team-tourn"]
[EventCountry "RUS"]
[SourceTitle "playchess.com"]
[Source "ChessBase"]
[SourceQuality "1"]
[TimeControl "40/5400+30:1800+30"]

1. d4 {[%emt 0:00:00]} Nf6 {[%emt 0:00:00]} 2. c4 {[%emt 0:00:02]} g6 {[%emt 0:00:00]} 3. Nc3 {[%emt 0:00:29]} d5 {[%emt 0:01:11]} 4. Bg5 {[%emt 0:00:42]} Bg7 {[%emt 0:04:11]} 5. Bxf6 {[%emt 0:00:24]} Bxf6 {[%emt 0:00:51]} 6. cxd5 {[%emt 0:00:07]} a6 {[%emt 0:13:45]} 7. e4 {[%emt 0:11:58]} c6 {[%emt 0:14:32]} 8. e5 {[%emt 0:14:41]} Bg7 {[%emt 0:00:36]} 9. Bc4 {[%emt 0:00:17]} b5 {[%emt 0:10:17]} 10. Bb3 {[%emt 0:00:16]} b4 {[%emt 0:00:33]} 11. Ne4 {[%emt 0:03:56]} cxd5 {[%emt 0:03:11]} 12. Ba4+ {[%emt 0:02:27]} Bd7 {[%emt 0:05:42]} 13. Nc5 {[%emt 0:00:51]} O-O {[%emt 0:04:50]} 14. Nxd7 {[%emt 0:06:52]} Nxd7 {[%emt 0:00:12]} 15. Bc6 {[%emt 0:00:56]} Ra7 {[%emt 0:00:42]} 16. Bxd5 {[%emt 0:02:59]} Nxe5 {[%emt 0:02:26]} 17. dxe5 {[%emt 0:00:23]} Rd7 {[%emt 0:00:05]} 18. Bxf7+ {[%emt 0:02:23]} Rxf7 {[%emt 0:00:08]} 19. Qe2 {[%emt 0:00:44]} Rd5 {[%emt 0:01:30]} 20. Nf3 {[%emt 0:02:50]} Qa5 {[%emt 0:01:08]} 21. O-O {[%emt 0:05:07]} Bxe5 {[%emt 0:00:11]} 22. Rad1 {[%emt 0:07:47]} Rxd1 {[%emt 0:05:15]} 23. Rxd1 {[%emt 0:01:57]} Bf6 {[%emt 0:00:09]} 24. b3 {[%emt 0:00:22]} Rf8 {[%emt 0:02:34]} 25. h3 {[%emt 0:03:23]} Qb6 {[%emt 0:07:11]} 26. Qe4 {[%emt 0:05:16]} a5 {[%emt 0:03:28]} 27. h4 {[%emt 0:02:01]} Rd8 {[%emt 0:02:32]} 28. Rd5 {[%emt 0:02:42]} Rxd5 {[%emt 0:02:29]} 29. Qxd5+ {[%emt 0:00:04]} Kg7 {[%emt 0:01:23]} 30. h5 {[%emt 0:03:13]} Qc7 {[%emt 0:03:16]} 31. g3 {[%emt 0:04:31]} Qa7 {[%emt 0:05:07]} 32. g4 {[%emt 0:08:55]} gxh5 {[%emt 0:00:55]} 33. g5 {[%emt 0:02:53]} Bc3 {[%emt 0:01:01]} 34. Nh4 {[%emt 0:00:33]} Qc7 {[%emt 0:02:02]} 35. Nf5+ {[%emt 0:03:06]} Kg6 {[%emt 0:00:35]} 36. Nh4+ {[%emt 0:00:27]} Kg7 {[%emt 0:00:02]} 37. Qe6 {[%emt 0:00:41]} Qc5 {[%emt 0:03:19]} 38. Nf5+ {[%emt 0:01:14]} Kf8 {[%emt 0:00:02]} 39. Qh6+ {[%emt 0:00:13]} Kg8 {[%emt 0:00:50]} 40. Qe6+ {[%emt 0:00:00]} Kf8 {[%emt 0:00:00]} 41. Qh6+ {[%emt 0:15:06]} Kg8 {[%emt 0:01:02]} 42. g6 {[%emt 0:00:29]} hxg6 {[%emt 0:00:58]} 43. Qxg6+ {[%emt 0:00:03]} Kf8 {[%emt 0:00:08]} 44. Qh6+ {[%emt 0:00:07]} Ke8 {[%emt 0:03:30]} 45. Qxh5+ {[%emt 0:00:08]} Kd7 {[%emt 0:04:34]} 46. Qf3 {[%emt 0:01:19]} Bf6 {[%emt 0:04:02]} 47. Qd3+ {[%emt 0:02:58]} Kc7 {[%emt 0:03:11]} 48. Ng3 {[%emt 0:02:16]} Qc3 {[%emt 0:01:01]} 49. Qe2 {[%emt 0:01:01]} Qc1+ {[%emt 0:07:01]} 50. Kg2 {[%emt 0:00:26]} Qc6+ {[%emt 0:00:27]} 51. Ne4 {[%emt 0:00:11]} Be5 {[%emt 0:01:29]} 52. Qd3 {[%emt 0:00:41]} Bd6 {[%emt 0:01:15]} 53. Kf3 {[%emt 0:00:55]} a4 {[%emt 0:00:18]} 54. bxa4 {[%emt 0:01:09]} Qxa4 {[%emt 0:00:09]} 55. Qc4+ {[%emt 0:02:57]} Qc6 {[%emt 0:02:48]} 56. Qd4 {[%emt 0:01:05]} Qa8 {[%emt 0:00:53]} 57. Qc4+ {[%emt 0:01:47]} Qc6 {[%emt 0:00:05]} 58. Qxc6+ {[%emt 0:03:01]} Kxc6 {[%emt 0:00:07]} 59. Nxd6 {[%emt 0:00:36]} Kxd6 {[%emt 0:00:06]} 60. Ke4 {[%emt 0:00:39]} Kc5 {[%emt 0:00:08]} 61. f4 {[%emt 0:00:54]} Kc4 {[%emt 0:01:08]} 62. f5 {[%emt 0:00:24]} Kc3 {[%emt 0:00:05]} 63. Kd5 {[%emt 0:00:19]} Kb2 {[%emt 0:00:06]} 64. Kc4 {[%emt 0:00:19]} Kxa2 {[%emt 0:00:29]} 65. Kxb4 {[%emt 0:00:05]} Kb2 {[%emt 0:00:05]} 66. Kc4 {[%emt 0:00:03]} Kc2 {[%emt 0:00:08]} 67. Kd5 {[%emt 0:00:03]} Kd3 {[%emt 0:00:08]} 68. Ke6 {[%emt 0:00:03]} Ke4 {[%emt 0:00:05]} 69. f6 {[%emt 0:00:02]} exf6 {[%emt 0:00:05]} 70. Kxf6 1/2-1/2

[Event "XXVII RUS-chT Premier 2020"]
[Site "Sochi"]
[Date "2020.11.20"]
[Round "2.24"]
[White "Savitskiy, Sergey"]
[Black "Zakhartsov, Vladimir"]
[Result "1/2-1/2"]
[ECO "B50"]
[WhiteElo "2451"]
[BlackElo "2484"]
[Annotator "ChessBase"]
[PlyCount "47"]
[EventDate "2020.11.19"]
[EventType "team-tourn"]
[EventCountry "RUS"]
[SourceTitle "playchess.com"]
[Source "ChessBase"]
[SourceQuality "1"]
[TimeControl "40/5400+30:1800+30"]

1. e4 {[%emt 0:00:00]} c5 {[%emt 0:00:00]} 2. Nf3 {[%emt 0:00:00]} d6 {[%emt 0:00:00]} 3. Nc3 {[%emt 0:00:32]} a6 {[%emt 0:01:20]} 4. g3 {[%emt 0:00:32]} Nf6 {[%emt 0:09:00]} 5. e5 {[%emt 0:07:49]} dxe5 {[%emt 0:01:33]} 6. Nxe5 {[%emt 0:00:18]} Qc7 {[%emt 0:00:57]} 7. d4 {[%emt 0:01:59]} cxd4 {[%emt 0:02:05]} 8. Qxd4 {[%emt 0:00:08]} Nc6 {[%emt 0:02:54]} 9. Nxc6 {[%emt 0:00:20]} Qxc6 {[%emt 0:00:08]} 10. Bg5 {[%emt 0:00:34]} Bg4 {[%emt 0:26:57]} 11. Bxf6 {[%emt 0:00:57]} Bf3 {[%emt 0:14:00]} 12. Bxg7 {[%emt 0:20:40]} Rg8 {[%emt 0:22:22]} 13. Bxf8 {[%emt 0:07:25]} Bxh1 {[%emt 0:00:07]} 14. Bxe7 {[%emt 0:03:58]} Qe6+ {[%emt 0:00:57]} 15. Kd2 {[%emt 0:17:15]} Qh6+ {[%emt 0:00:07]} 16. Qe3 {[%emt 0:03:09]} Qxe3+ {[%emt 0:00:16]} 17. Kxe3 {[%emt 0:00:04]} Kxe7 {[%emt 0:00:05]} 18. Bxa6 {[%emt 0:00:14]} Rxa6 {[%emt 0:01:33]} 19. Rxh1 {[%emt 0:00:10]} Rd8 {[%emt 0:00:54]} 20. g4 {[%emt 0:05:06]} Rb6 {[%emt 0:02:31]} 21. Rb1 {[%emt 0:02:33]} Rh6 {[%emt 0:00:25]} 22. Rh1 {[%emt 0:05:12]} Rb6 {[%emt 0:00:06]} 23. Rb1 {[%emt 0:02:29]} Rh6 {[%emt 0:00:02]} 24. Rh1 {[%emt 0:00:49]} 1/2-1/2

[Event "XXVII RUS-chT Premier 2020"]
[Site "Sochi"]
[Date "2020.11.20"]
[Round "2.25"]
[White "Riazantsev, Alexander"]
[Black "Iljiushenok, Ilia"]
[Result "1/2-1/2"]
[ECO "E76"]
[WhiteElo "2628"]
[BlackElo "2539"]
[Annotator "ChessBase"]
[PlyCount "73"]
[EventDate "2020.11.19"]
[EventType "team-tourn"]
[EventCountry "RUS"]
[SourceTitle "playchess.com"]
[Source "ChessBase"]
[SourceQuality "1"]
[TimeControl "40/5400+30:1800+30"]

1. d4 {[%emt 0:00:00]} Nf6 {[%emt 0:00:00]} 2. c4 {[%emt 0:00:00]} g6 {[%emt 0:00:00]} 3. Nc3 {[%emt 0:00:00]} Bg7 {[%emt 0:00:00]} 4. e4 {[%emt 0:00:06]} d6 {[%emt 0:00:00]} 5. f4 {[%emt 0:00:18]} O-O {[%emt 0:04:44]} 6. Nf3 {[%emt 0:00:19]} Na6 {[%emt 0:09:33]} 7. Bd3 {[%emt 0:01:52]} e5 {[%emt 0:02:05]} 8. fxe5 {[%emt 0:00:24]} dxe5 {[%emt 0:00:05]} 9. d5 {[%emt 0:00:05]} c6 {[%emt 0:04:10]} 10. O-O {[%emt 0:00:37]} cxd5 {[%emt 0:13:56]} 11. cxd5 {[%emt 0:01:44]} Qd6 {[%emt 0:17:19]} 12. Kh1 {[%emt 0:15:44]} Bd7 {[%emt 0:01:23]} 13. Nd2 {[%emt 0:00:54]} Rac8 {[%emt 0:09:27]} 14. Nc4 {[%emt 0:03:31]} Qe7 {[%emt 0:00:17]} 15. Bg5 {[%emt 0:07:30]} h6 {[%emt 0:00:42]} 16. d6 {[%emt 0:26:08]} Qe6 {[%emt 0:02:11]} 17. Bxf6 {[%emt 0:01:14]} Bxf6 {[%emt 0:00:10]} 18. Na5 {[%emt 0:00:03]} Bg5 {[%emt 0:06:48]} 19. Nxb7 {[%emt 0:00:31]} Nc5 {[%emt 0:09:41]} 20. Nxc5 {[%emt 0:09:05]} Rxc5 {[%emt 0:00:19]} 21. Bc2 {[%emt 0:00:16]} Rc6 {[%emt 0:00:06]} 22. Bb3 {[%emt 0:06:51]} Qxd6 {[%emt 0:00:04]} 23. Ba4 {[%emt 0:00:52]} Qxd1 {[%emt 0:00:05]} 24. Raxd1 {[%emt 0:00:33]} Rxc3 {[%emt 0:00:05]} 25. Rxd7 {[%emt 0:00:54]} Rc4 {[%emt 0:00:11]} 26. Rxa7 {[%emt 0:10:11]} Rxe4 {[%emt 0:00:22]} 27. Bb3 {[%emt 0:00:03]} Re2 {[%emt 0:03:23]} 28. Raxf7 {[%emt 0:04:11]} Rxf7 {[%emt 0:00:09]} 29. Bxf7+ {[%emt 0:00:08]} Kg7 {[%emt 0:02:07]} 30. b4 {[%emt 0:00:19]} e4 {[%emt 0:01:25]} 31. Bc4 {[%emt 0:01:08]} Rb2 {[%emt 0:05:31]} 32. Rf7+ {[%emt 0:04:43]} Kh8 {[%emt 0:00:04]} 33. Rf8+ {[%emt 0:00:03]} Kg7 {[%emt 0:00:03]} 34. Rf7+ {[%emt 0:00:03]} Kh8 {[%emt 0:00:01]} 35. Rf8+ {[%emt 0:00:04]} Kg7 {[%emt 0:00:02]} 36. Rf7+ {[%emt 0:00:04]} Kh8 {[%emt 0:00:02]} 37. Rf8+ {[%emt 0:00:05]} 1/2-1/2

[Event "XXVII RUS-chT Premier 2020"]
[Site "Sochi"]
[Date "2020.11.20"]
[Round "2.27"]
[White "Chigaev, Maksim"]
[Black "Nozdrachev, Leonid"]
[Result "1-0"]
[ECO "C65"]
[WhiteElo "2615"]
[BlackElo "2391"]
[Annotator "ChessBase"]
[PlyCount "77"]
[EventDate "2020.11.19"]
[EventType "team-tourn"]
[EventCountry "RUS"]
[SourceTitle "playchess.com"]
[Source "ChessBase"]
[SourceQuality "1"]
[TimeControl "40/5400+30:1800+30"]

1. e4 {[%emt 0:00:00]} e5 {[%emt 0:00:00]} 2. Nf3 {[%emt 0:00:00]} Nc6 {[%emt 0:00:00]} 3. Bb5 {[%emt 0:00:00]} Nf6 {[%emt 0:00:51]} 4. d3 {[%emt 0:00:07]} Bc5 {[%emt 0:00:53]} 5. c3 {[%emt 0:00:48]} d6 {[%emt 0:22:04]} 6. d4 {[%emt 0:06:43]} exd4 {[%emt 0:00:09]} 7. cxd4 {[%emt 0:00:07]} Bb4+ {[%emt 0:00:07]} 8. Kf1 {[%emt 0:00:22]} d5 {[%emt 0:02:06]} 9. e5 {[%emt 0:12:30]} Nd7 {[%emt 0:05:49]} 10. Qb3 {[%emt 0:02:10]} Be7 {[%emt 0:09:32]} 11. Qxd5 {[%emt 0:01:24]} Nb4 {[%emt 0:04:23]} 12. Qe4 {[%emt 0:17:30]} c6 {[%emt 0:11:39]} 13. Bc4 {[%emt 0:00:32]} Nb6 {[%emt 0:02:33]} 14. Bb3 {[%emt 0:00:08]} a5 {[%emt 0:05:56]} 15. a3 {[%emt 0:01:41]} N4d5 {[%emt 0:03:17]} 16. Nc3 {[%emt 0:00:31]} Be6 {[%emt 0:03:49]} 17. Bc2 {[%emt 0:00:08]} a4 {[%emt 0:00:30]} 18. h4 {[%emt 0:00:30]} h6 {[%emt 0:00:30]} 19. Kg1 {[%emt 0:00:30]} Qd7 {[%emt 0:00:30]} 20. h5 {[%emt 0:00:30]} Ra5 {[%emt 0:00:30]} 21. Nh4 {[%emt 0:00:30]} Bxh4 {[%emt 0:00:30]} 22. Rxh4 {[%emt 0:00:30]} Ne7 {[%emt 0:00:30]} 23. Qe1 {[%emt 0:00:30]} Ra8 {[%emt 0:00:30]} 24. Ne4 {[%emt 0:00:30]} Nf5 {[%emt 0:00:30]} 25. Nc5 {[%emt 0:00:30]} Qe7 {[%emt 0:00:30]} 26. Rf4 {[%emt 0:00:30]} Nxd4 {[%emt 0:00:30]} 27. Nxe6 {[%emt 0:00:30]} Nxc2 {[%emt 0:00:30]} 28. Nxg7+ {[%emt 0:00:30]} Kf8 {[%emt 0:00:30]} 29. Qe4 {[%emt 0:00:30]} Nxa1 {[%emt 0:00:30]} 30. e6 {[%emt 0:00:30]} f6 {[%emt 0:00:30]} 31. Nf5 {[%emt 0:00:30]} Qc7 {[%emt 0:00:30]} 32. Rg4 {[%emt 0:00:30]} Nd5 {[%emt 0:00:30]} 33. Bxh6+ {[%emt 0:00:30]} Ke8 {[%emt 0:00:30]} 34. Rg7 {[%emt 0:00:30]} Qe5 {[%emt 0:00:30]} 35. Qxe5 {[%emt 0:00:30]} fxe5 {[%emt 0:00:30]} 36. Rf7 {[%emt 0:00:30]} Kd8 {[%emt 0:00:30]} 37. Rd7+ {[%emt 0:00:30]} Kc8 {[%emt 0:00:30]} 38. Nd6+ {[%emt 0:00:30]} Kb8 {[%emt 0:00:30]} 39. Rxb7# {[%emt 0:00:30]} 1-0

[Event "XXVII RUS-chT Premier 2020"]
[Site "Sochi"]
[Date "2020.11.20"]
[Round "2.28"]
[White "Smirnov, Timofey"]
[Black "Antipov, Mikhail Al."]
[Result "0-1"]
[ECO "B44"]
[WhiteElo "2394"]
[BlackElo "2607"]
[Annotator "ChessBase"]
[PlyCount "144"]
[EventDate "2020.11.19"]
[EventType "team-tourn"]
[EventCountry "RUS"]
[SourceTitle "playchess.com"]
[Source "ChessBase"]
[SourceQuality "1"]
[TimeControl "40/5400+30:1800+30"]

1. e4 {[%emt 0:00:00]} c5 {[%emt 0:00:00]} 2. Nf3 {[%emt 0:00:00]} e6 {[%emt 0:00:00]} 3. d4 {[%emt 0:00:00]} cxd4 {[%emt 0:00:00]} 4. Nxd4 {[%emt 0:00:00]} Nc6 {[%emt 0:00:00]} 5. Nb5 {[%emt 0:04:32]} d6 {[%emt 0:00:00]} 6. Bf4 {[%emt 0:00:07]} e5 {[%emt 0:00:10]} 7. Be3 {[%emt 0:00:07]} Nf6 {[%emt 0:00:42]} 8. Bg5 {[%emt 0:00:41]} Be6 {[%emt 0:01:29]} 9. N1c3 {[%emt 0:03:39]} a6 {[%emt 0:00:50]} 10. Na3 {[%emt 0:02:51]} Be7 {[%emt 0:00:37]} 11. Nc4 {[%emt 0:02:36]} O-O {[%emt 0:00:16]} 12. Bxf6 {[%emt 0:04:41]} Bxf6 {[%emt 0:00:07]} 13. Be2 {[%emt 0:13:39]} Nd4 {[%emt 0:05:12]} 14. Ne3 {[%emt 0:01:49]} Rc8 {[%emt 0:04:59]} 15. Bd3 {[%emt 0:05:34]} Qa5 {[%emt 0:26:55]} 16. O-O {[%emt 0:01:42]} Rxc3 {[%emt 0:00:05]} 17. bxc3 {[%emt 0:00:27]} Qxc3 {[%emt 0:00:04]} 18. Qe1 {[%emt 0:06:18]} Qc5 {[%emt 0:05:08]} 19. c3 {[%emt 0:04:35]} Nc6 {[%emt 0:00:14]} 20. Qd2 {[%emt 0:02:59]} Bg5 {[%emt 0:04:49]} 21. Rfe1 {[%emt 0:02:45]} Rc8 {[%emt 0:00:20]} 22. Rac1 {[%emt 0:05:58]} h5 {[%emt 0:01:06]} 23. Rc2 {[%emt 0:02:14]} g6 {[%emt 0:00:51]} 24. Qe2 {[%emt 0:04:33]} Nb8 {[%emt 0:10:10]} 25. h3 {[%emt 0:07:14]} b5 {[%emt 0:14:34]} 26. Qd1 {[%emt 0:06:54]} Nd7 {[%emt 0:01:37]} 27. Qb1 {[%emt 0:02:16]} Qb6 {[%emt 0:05:35]} 28. Qb4 {[%emt 0:03:52]} Nc5 {[%emt 0:04:19]} 29. Rd2 {[%emt 0:01:03]} Rc6 {[%emt 0:07:59]} 30. Bf1 {[%emt 0:02:33]} Kg7 {[%emt 0:02:42]} 31. Rc2 {[%emt 0:04:55]} Rc8 {[%emt 0:01:18]} 32. a3 {[%emt 0:01:38]} Rb8 {[%emt 0:01:02]} 33. Nd5 {[%emt 0:01:36]} Bxd5 {[%emt 0:01:17]} 34. exd5 {[%emt 0:00:01]} h4 {[%emt 0:00:51]} 35. Qg4 {[%emt 0:01:37]} Bd8 {[%emt 0:00:35]} 36. Rb1 {[%emt 0:00:38]} f5 {[%emt 0:00:38]} 37. Qd1 {[%emt 0:01:26]} Qa5 {[%emt 0:00:51]} 38. Qc1 {[%emt 0:00:54]} Rb7 {[%emt 0:00:56]} 39. Rb4 {[%emt 0:00:07]} Rc7 {[%emt 0:00:39]} 40. c4 {[%emt 0:00:00]} bxc4 {[%emt 0:00:00]} 41. Rcxc4 {[%emt 0:01:08]} e4 {[%emt 0:12:54]} 42. Qf4 {[%emt 0:07:06]} Rd7 {[%emt 0:00:16]} 43. a4 {[%emt 0:00:25]} Bf6 {[%emt 0:01:50]} 44. Rb8 {[%emt 0:04:33]} Qc7 {[%emt 0:04:58]} 45. Rcb4 {[%emt 0:01:51]} Rd8 {[%emt 0:01:00]} 46. R8b6 {[%emt 0:01:31]} Qe7 {[%emt 0:00:11]} 47. Qe3 {[%emt 0:03:10]} Qe5 {[%emt 0:09:39]} 48. Rb7+ {[%emt 0:01:04]} Nxb7 {[%emt 0:00:06]} 49. Rxb7+ {[%emt 0:00:01]} Be7 {[%emt 0:00:23]} 50. Qg5 {[%emt 0:00:21]} Re8 {[%emt 0:00:35]} 51. Qxh4 Qf6 {[%emt 0:00:59]} 52. Qxf6+ {[%emt 0:01:34]} Kxf6 {[%emt 0:00:02]} 53. Bxa6 {[%emt 0:00:01]} Rc8 {[%emt 0:00:51]} 54. Bf1 {[%emt 0:05:30]} Bd8 {[%emt 0:00:34]} 55. Rb5 {[%emt 0:01:10]} Ra8 {[%emt 0:00:16]} 56. Rb4 {[%emt 0:00:26]} Ke5 {[%emt 0:01:19]} 57. g4 {[%emt 0:02:18]} Rc8 {[%emt 0:01:27]} 58. gxf5 {[%emt 0:01:59]} gxf5 {[%emt 0:00:02]} 59. Rb5 {[%emt 0:00:00]} Rc2 {[%emt 0:00:59]} 60. a5 {[%emt 0:00:36]} Bh4 {[%emt 0:00:06]} 61. a6 {[%emt 0:00:20]} Bxf2+ {[%emt 0:00:08]} 62. Kh1 {[%emt 0:00:03]} Ra2 {[%emt 0:00:35]} 63. Rb8 {[%emt 0:01:51]} f4 {[%emt 0:00:14]} 64. Bc4 {[%emt 0:00:51]} Ra1+ {[%emt 0:01:20]} 65. Kg2 {[%emt 0:00:02]} Bc5 {[%emt 0:00:11]} 66. h4 {[%emt 0:00:34]} Kd4 {[%emt 0:00:49]} 67. Bb5 {[%emt 0:00:21]} f3+ {[%emt 0:00:04]} 68. Kg3 {[%emt 0:00:17]} Rg1+ {[%emt 0:00:24]} 69. Kh2 {[%emt 0:00:12]} Rb1 {[%emt 0:00:49]} 70. Rb7 {[%emt 0:00:15]} e3 {[%emt 0:00:45]} 71. h5 {[%emt 0:00:43]} Rxb5 {[%emt 0:00:48]} 72. Rxb5 {[%emt 0:00:05]} e2 {[%emt 0:00:05]} 0-1

[Event "XXVII RUS-chT Premier 2020"]
[Site "Sochi"]
[Date "2020.11.20"]
[Round "2.29"]
[White "Yuffa, Daniil"]
[Black "Tsoi, Dmitry"]
[Result "0-1"]
[ECO "A90"]
[WhiteElo "2565"]
[BlackElo "2315"]
[Annotator "ChessBase"]
[PlyCount "80"]
[EventDate "2020.11.19"]
[EventType "team-tourn"]
[EventCountry "RUS"]
[SourceTitle "playchess.com"]
[Source "ChessBase"]
[SourceQuality "1"]
[TimeControl "40/5400+30:1800+30"]

1. d4 {[%emt 0:00:00]} e6 {[%emt 0:00:00]} 2. c4 {[%emt 0:00:11]} f5 {[%emt 0:00:00]} 3. g3 {[%emt 0:00:22]} Nf6 {[%emt 0:00:00]} 4. Bg2 {[%emt 0:00:05]} d5 {[%emt 0:00:00]} 5. Nf3 {[%emt 0:00:55]} c6 {[%emt 0:00:00]} 6. O-O {[%emt 0:00:08]} Bd6 {[%emt 0:00:00]} 7. Nc3 {[%emt 0:00:34]} O-O {[%emt 0:00:06]} 8. Qc2 {[%emt 0:00:14]} Qe7 {[%emt 0:00:44]} 9. Rb1 {[%emt 0:00:51]} Bd7 {[%emt 0:06:00]} 10. c5 {[%emt 0:05:45]} Bc7 {[%emt 0:00:15]} 11. b4 {[%emt 0:00:04]} a6 {[%emt 0:04:05]} 12. a4 {[%emt 0:00:32]} Ne4 {[%emt 0:00:15]} 13. Nxe4 {[%emt 0:07:31]} fxe4 {[%emt 0:00:09]} 14. Bg5 {[%emt 0:02:38]} Qf7 {[%emt 0:13:38]} 15. Ne5 {[%emt 0:00:56]} Bxe5 {[%emt 0:01:16]} 16. dxe5 {[%emt 0:00:13]} h6 {[%emt 0:00:03]} 17. Be3 {[%emt 0:02:44]} Be8 {[%emt 0:00:29]} 18. f3 {[%emt 0:03:51]} exf3 {[%emt 0:01:32]} 19. exf3 {[%emt 0:02:02]} Qh5 {[%emt 0:05:56]} 20. Qc3 {[%emt 0:00:39]} Bg6 {[%emt 0:01:19]} 21. Rb2 {[%emt 0:01:47]} Qf5 {[%emt 0:01:39]} 22. Rd2 {[%emt 0:04:49]} Nd7 {[%emt 0:00:40]} 23. f4 {[%emt 0:01:51]} h5 {[%emt 0:03:41]} 24. h3 {[%emt 0:00:49]} Kf7 {[%emt 0:08:46]} 25. Kh2 {[%emt 0:01:20]} Ke7 {[%emt 0:02:39]} 26. Bf3 {[%emt 0:00:16]} Rh8 {[%emt 0:01:03]} 27. Kg2 {[%emt 0:01:18]} Bf7 {[%emt 0:06:54]} 28. Bd1 {[%emt 0:07:23]} Qh7 {[%emt 0:05:22]} 29. f5 {[%emt 0:05:47]} exf5 {[%emt 0:03:54]} 30. Bg5+ {[%emt 0:00:18]} Kf8 {[%emt 0:02:33]} 31. Rdf2 {[%emt 0:15:38]} Be6 {[%emt 0:03:16]} 32. Rxf5+ {[%emt 0:07:33]} Bxf5 {[%emt 0:02:15]} 33. Bc2 {[%emt 0:01:28]} g6 {[%emt 0:00:33]} 34. e6 {[%emt 0:11:59]} Kg8 {[%emt 0:00:57]} 35. exd7 {[%emt 0:07:18]} Qxd7 {[%emt 0:00:09]} 36. Bf6 {[%emt 0:00:40]} Bxh3+ {[%emt 0:06:50]} 37. Kg1 {[%emt 0:00:05]} Bxf1 {[%emt 0:00:22]} 38. Bxh8 {[%emt 0:00:04]} Qf7 {[%emt 0:05:32]} 39. Bd4 {[%emt 0:00:23]} Bh3 {[%emt 0:01:09]} 40. Kh2 {[%emt 0:00:00]} Bf5 {[%emt 0:00:00]} 0-1